Cogmind - Beta 14 @@@ ROGUE MODE // 2025.01.10 @ 02:47:52 Player: Byrnorthil Result: Destroyed by G-50 Soldier with Heavy Laser Performance ------------- Evolutions (4) 2000 Regions Visited (12) 2400 Robots Destroyed (119) 595 Value Destroyed (5030) 5030 Prototype IDs (49) 980 Alien Tech Used (0) 0 Bonus (2848) 2848 TOTAL SCORE: 13853 Bonus ------- High Alert Combat Kills 246 Follower Combat Kills 460 Entered Garrisons 600 Used RIF Installer 1500 Aligned with FarCom 300 Friendly Fire -258 Cogmind --------- Core Integrity 0/850 Matter 300/300 Energy 83/100 System Corruption 1% Temperature Cool (52) Movement Core (50) Location -6/Garrison Parts ------- > --- POWER (1) -------- (None) > --- PROPULSION (3) --- (None) > --- UTILITY (8) ------ Relay Coupler [NC] (40) Relay Coupler [Grunt] (9) Relay Coupler [Hunter] (12) > --- WEAPON (3) ------- (None) > --- INVENTORY (5) ---- Light Ion Engine Weapon Cycler Authchip [R/NC] Authchip [R/Combat] Heavy Plasma Cannon Peak State ------------ > --- POWER ------------ Light Nuclear Core > --- PROPULSION ------- Light Treads Armored Wheel Armored Wheel > --- UTILITY ---------- High-capacity Storage Unit Improved Heavy Armor Plating Relay Coupler [NC] Relay Coupler [Grunt] Relay Coupler [Brawler] Relay Coupler [Specialist] Relay Coupler [Hunter] > --- WEAPON ----------- Matter Neutralizer Matter Neutralizer Remote Datajack > --- INVENTORY -------- Improved Deuterium Engine Improved Deuterium Engine Improved Deuterium Engine Light Treads Light Treads Improved Medium Treads Weapon Cycler Transmission Jammer Authchip [R/NC] Authchip [R/Combat] Relay Coupler [NC] Relay Coupler [Heavy] Relay Coupler [Heavy] Gatling Laser Heavy Plasma Cannon Autogun Minigun Enhanced Autogun Heavy Machine Gun Missile Launcher [Rating: 61] Favorites ----------- Power Light Deuterium Engine Engine Light Deuterium Engine Power Core Light Nuclear Core Propulsion Light Treads Treads Light Treads Leg Aluminum Leg Wheel Armored Wheel Flight Unit Surge Thruster Utility High-capacity Storage Unit Device PSU Rigger Storage High-capacity Storage Unit Processor Machine Analyzer Hackware Relay Coupler [NC] Protection Layered Light Armor Plating Weapon EM Pulse Gun Energy Gun EM Pulse Gun Energy Cannon Matter Neutralizer Ballistic Gun Minigun Launcher Grenade Launcher Special Weapon Remote Datajack Special Melee Weapon Datajack Build | -11 -10 -10 -10 -9 -8 -8 -7 -7 -7 -7 -6 -6 ------- Run | Yrd Mat Min Exi Min Mat Gar Fac Was Fac Gar Fac Gar Slots Evolved 8 | . . . . . 4 . 2 . . . 2 . Power . | . . . . . . . . . . . . . Propulsion 1 | . . . . . 1 . . . . . . . Utility 6 | . . . . . 2 . 2 . . . 2 . Weapon 1 | . . . . . 1 . . . . . . . Parts Attached 159 | 9 16 6 2 4 30 34 8 1 16 11 1 21 Power 9 | 1 1 1 . . 1 2 . . 1 1 . 1 Engine 6 | 1 1 1 . . 1 2 . . . . . . Core 3 | . . . . . . . . . 1 1 . 1 Reactor . | . . . . . . . . . . . . . Propulsion 33 | 2 3 . . 1 8 1 1 . 5 4 . 8 Treads 21 | . 2 . . 1 7 1 1 . 2 . . 7 Leg 3 | 2 1 . . . . . . . . . . . Wheel 8 | . . . . . . . . . 3 4 . 1 Hover . | . . . . . . . . . . . . . Flight 1 | . . . . . 1 . . . . . . . Utility 50 | 3 5 3 . . 6 12 4 1 6 3 1 6 Device 22 | 2 1 1 . . 4 8 2 . 2 1 1 . Storage 4 | 1 2 . . . . . 1 . . . . . Processor 3 | . . 1 . . . . 1 . 1 . . . Hackware 9 | . . . . . . . . 1 3 1 . 4 Protection 12 | . 2 1 . . 2 4 . . . 1 . 2 Artifact . | . . . . . . . . . . . . . Weapon 67 | 3 7 2 2 3 15 19 3 . 4 3 . 6 Energy Gun 21 | 3 4 1 1 2 9 . . . 1 . . . Energy Cannon 3 | . 1 . . . . . . . . . . 2 Ballistic Gun 21 | . 2 . . . 2 10 1 . 2 1 . 3 Ballistic Cannon . | . . . . . . . . . . . . . Launcher 13 | . . 1 . 1 2 9 . . . . . . Special Weapon 5 | . . . . . . . 1 . 1 2 . 1 Impact Weapon . | . . . . . . . . . . . . . Slashing Weapon . | . . . . . . . . . . . . . Piercing Weapon . | . . . . . . . . . . . . . Special Melee Weapon 4 | . . . 1 . 2 . 1 . . . . . Unidentified Prototypes 3 | . . . . . 2 . . . 1 . . . Parts Lost 43 | . 2 1 . . 4 3 1 . 8 2 . 22 Power 7 | . 1 . . . 1 1 . . 1 1 . 2 Propulsion 13 | . . . . . . . . . 4 1 . 8 Utility 9 | . . . . . . 2 . . 1 . . 6 Weapon 14 | . 1 1 . . 3 . 1 . 2 . . 6 Highest Loss Streak 13 | . 1 1 . . 4 1 1 . 3 1 . 13 To Critical Strikes 1 | . . . . . . . 1 . . . . . Average Slot Usage (%) 98 | . 99 100 100 100 98 99 96 99 92 97 93 82 Engine 10 | . 13 14 14 14 8 8 7 7 2 . . . Treads 23 | . 18 28 28 28 26 27 23 23 13 1 . 3 Leg 1 | . 9 . . . . . . . . . . . Wheel 1 | . . . . . . . . . 4 20 20 10 Device 7 | . 10 . . . 14 14 19 23 12 4 13 1 Storage 11 | . 14 14 14 14 9 9 7 7 7 7 6 6 Processor 7 | . . 12 14 14 9 2 7 7 7 7 6 3 Hackware 2 | . . . . . . . . 6 15 15 13 24 Protection 3 | . 3 1 . . 3 10 7 . . 6 6 5 Energy Gun 12 | . 20 26 14 16 17 1 . . 2 . . . Ballistic Gun 7 | . 6 . . . 3 23 19 15 10 15 13 9 Launcher 1 | . . 1 . 9 . 1 2 . . . . . Special Weapon 1 | . . . . . . . . 7 6 6 6 5 Special Melee Weapon 2 | . . . 13 2 4 . . . . . . . Peak Build Rating 61 | 9 9 13 14 21 49 49 50 48 49 45 48 61 Average Rating 27 | 7 8 12 13 19 37 43 48 47 41 43 47 50 On Entrance 29 | . 7 9 13 14 21 46 43 50 48 41 45 48 Naked Turns . | . . . . . . . . . . . . . Heaviest Build 83 | 13 50 50 50 52 71 73 73 69 69 64 65 83 Greatest Support 72 | 20 40 40 40 48 72 72 70 70 70 36 36 50 Greatest Overweight (x) 18 | . 1 1 1 1 1 1 1 . 18 5 1 5 Average Overweight (x) . | . . 1 1 . . . . . 1 1 1 3 Largest Inventory Capacity 20 | 8 20 20 20 20 20 20 20 20 20 20 20 20 Average Capacity 19 | 7 14 20 20 20 20 20 20 20 20 20 20 19 Most Carried 20 | 7 18 20 20 20 20 20 20 20 20 20 20 20 Average Carried 18 | 4 11 19 19 19 19 19 19 19 18 19 19 18 Final Capacity 20 | 8 20 20 20 20 20 20 20 20 20 20 20 5 Final Carried 20 | 7 18 19 20 20 20 20 20 20 20 19 19 5 Class Distribution -------------------- 56% | Mutant 18% | Bothacker-Skirmisher 14% | Skirmisher 9% | Tank Dominant Class ---------------- Mutant | -10/Materials Mutant | -10/Mines Mutant | -10/Exiles Mutant | -9/Mines Skirmisher | -8/Materials Tank | -8/Garrison Bothacker-Skirmisher | -7/Factory Bothacker-Skirmisher | -7/Waste Bothacker-Skirmisher | -7/Factory Bothacker-Skirmisher | -7/Garrison Bothacker-Skirmisher | -6/Factory Bothacker-Skirmisher | -6/Garrison Resources | -11 -10 -10 -10 -9 -8 -8 -7 -7 -7 -7 -6 -6 ----------- Run | Yrd Mat Min Exi Min Mat Gar Fac Was Fac Gar Fac Gar Matter Collected 4281 | 344 275 84 . 90 500 1137 384 11 485 403 41 527 Remotely 301 | . . . . . . . 290 11 . . . . Salvage Created 5017 | 165 1012 291 . 170 1258 507 262 . 578 370 41 363 Parts 252 | 20 48 19 . 13 69 15 8 . 21 18 1 20 Haulers Intercepted 4 | . 2 . . . 2 . . . . . . . Recyclers Shooed 1 | . . . . . 1 . . . . . . . Parts Field Recycled . | . . . . . . . . . . . . . Retrieved Matter . | . . . . . . . . . . . . . Parts Self-Destructed . | . . . . . . . . . . . . . Prevented . | . . . . . . . . . . . . . Kills | -11 -10 -10 -10 -9 -8 -8 -7 -7 -7 -7 -6 -6 ------- Run | Yrd Mat Min Exi Min Mat Gar Fac Was Fac Gar Fac Gar Combat Hostiles Destroyed 112 | . 22 6 . 7 21 29 5 . 9 4 1 8 Melee 1 | . . . . . . . . . . . . 1 Guns 88 | . 18 5 . 3 15 21 5 . 9 4 1 7 Cannons 1 | . 1 . . . . . . . . . . . AOE 22 | . 3 1 . 4 6 8 . . . . . . Classes Destroyed 17 | 2 6 . . . 3 2 . . 2 . . 2 Worker 6 | 1 . 2 . . 1 . . . 2 . . . Builder 1 | . . . . . . . . . 1 . . . Tunneler 7 | 6 . 1 . . . . . . . . . . Hauler 4 | . 2 . . . 2 . . . . . . . Recycler 1 | . 1 . . . . . . . . . . . Operator 2 | . 1 . . . 1 . . . . . . . Watcher 8 | . 3 . . . 5 . . . . . . . Swarmer 14 | . 6 . . 4 3 . . . . . . 1 Saboteur 2 | . . . . . . . . . . . . 2 Grunt 51 | . 16 6 . 3 10 3 3 . 7 2 1 . Brawler 3 | . . . . . 1 . . . 1 . . 1 Sentry 9 | . . . . . 5 . 1 . 1 . . 2 Specialist 2 | . . . . . 2 . . . . . . . Hunter 2 | . . . . . . . . . 1 . . 1 Programmer 6 | . . . . . . 3 1 . . 2 . . Behemoth 1 | . . . . . . . . . . . . 1 Assembled 24 | . . . . . . 24 . . . . . . Best Kill Streak 11 | 3 5 4 . 3 3 11 2 . 4 2 1 3 Combat Bots Only 11 | . 5 2 . 3 3 11 2 . 4 2 1 3 Max Kills in Single Turn 3 | 1 2 3 . 2 3 3 1 . 2 1 1 1 Gunslinging 1 | . 1 . . . . . . . . . . . Exploded 3 | . 1 1 . 2 3 3 . . . . . . Melee 1 | . . . . . . . . . . . . 1 Uniques/NPCs Destroyed . | . . . . . . . . . . . . . Combat | -11 -10 -10 -10 -9 -8 -8 -7 -7 -7 -7 -6 -6 -------- Run | Yrd Mat Min Exi Min Mat Gar Fac Was Fac Gar Fac Gar Hostile Shots Fired 743 | . 73 16 6 9 65 91 34 . 103 39 2 305 Missed 237 | . 16 5 2 3 22 28 10 . 32 12 1 106 Damage Taken 7394 | . 608 113 75 107 647 1070 295 . 779 276 38 3386 Core 1541 | . 155 10 23 33 126 122 . . 134 73 . 865 Absorbed by Shields 144 | . . . . . 8 136 . . . . . . Redirected to Shielding 54 | . 11 3 . . 40 . . . . . . . Ignored by Resistances 20 | . . . . . . . . . . . . 20 Regen/Repaired (Parts) 92 | . . . . . 50 . . . 42 . . . Core Remaining (%) 58 | 100 . . . 11 . 54 . . . 70 . . Volleys Fired 459 | 15 84 15 . 7 65 82 15 7 59 45 8 57 Largest 3 | 2 2 2 . 2 3 3 3 1 2 3 2 2 Hottest 210 | 80 125 80 . 95 185 103 73 5 80 75 50 210 Shots Fired 885 | 29 168 27 . 11 164 189 44 7 71 69 11 95 Gun 788 | 29 153 24 . 8 159 169 44 . 60 63 6 73 Cannon 20 | . 15 . . . . . . . . . . 5 Launcher 31 | . . 3 . 3 5 20 . . . . . . Special 46 | . . . . . . . . 7 11 6 5 17 Kinetic 449 | . 36 . . . 44 165 44 . 18 63 6 73 Thermal 134 | 28 86 . . . 15 . . . . . . 5 Explosive 31 | . . 3 . 3 5 20 . . . . . . Electromagnetic 225 | 1 46 24 . 8 100 4 . . 42 . . . Robot Hit Streak 22 | 4 7 7 . 9 18 20 7 4 12 22 3 18 Robot Miss Streak 7 | 2 4 1 . 1 7 4 7 1 2 5 3 2 Penetration Max . | . . . . . . . . . . . . . Secondary Targets 14 | . 2 1 . 1 . 6 . . . 1 . 3 Max Gunslinging Chain 1 | . 1 1 . 1 . 1 . . . 1 . 1 Shots Hit Robots 529 | 18 101 18 5 8 103 87 20 5 50 40 5 69 Core Hits 255 | 7 42 11 . 8 58 58 10 . 24 17 2 18 Critical Kills 1 | . . . . . . . . . . 1 . . Critical Parts Destroyed 1 | . . . . . . . . . . 1 . . Critical Strikes 8 | . 2 . . . 2 . . . 1 2 . 1 Burn 1 | . 1 . . . . . . . . . . . Destroy 3 | . . . . . . . . . . 2 . 1 Corrupt 4 | . 1 . . . 2 . . . 1 . . . Melee Attacks 10 | . . . 5 . 5 . . . . . . . Impact . | . . . . . . . . . . . . . Slashing . | . . . . . . . . . . . . . Piercing . | . . . . . . . . . . . . . Sneak Attacks 10 | . . . 5 . 5 . . . . . . . Combat Hostiles . | . . . . . . . . . . . . . Follow-up Attacks . | . . . . . . . . . . . . . Damage Inflicted 10128 | 183 1461 632 . 327 2402 2181 319 . 923 512 78 1110 Guns 7689 | 183 1211 282 . 117 1776 1406 319 . 850 512 78 955 Cannons 259 | . 104 . . . . . . . . . . 155 Explosions 1995 | . 130 278 . 210 573 755 . . 49 . . . Melee . | . . . . . . . . . . . . . Ramming 185 | . 16 72 . . 53 20 . . 24 . . . Kinetic 4108 | . 176 . . . 472 1385 319 . 211 512 78 955 Thermal 1718 | 168 810 278 . . 258 . . . 49 . . 155 Explosive 1461 | . . . . 210 496 755 . . . . . . Electromagnetic 2656 | 15 459 282 . 117 1123 21 . . 639 . . . Impact . | . . . . . . . . . . . . . Slashing . | . . . . . . . . . . . . . Piercing . | . . . . . . . . . . . . . Highest Corruption 23 | . . . . . . 10 . 16 20 23 . 1 Average Corruption 11 | . . . . . . 6 . 8 17 22 . 1 Corruption Purged . | . . . . . . . . . . . . . Corruption Blocked . | . . . . . . . . . . . . . Effects 132 | . . . . . . 50 . 6 46 28 . 2 Message Errors 34 | . . . . . . 11 . 2 12 8 . 1 Matter Fused 23 | . . . . . . 9 . 2 9 3 . . Heat Flow Errors 16 | . . . . . . 7 . . 4 5 . . Energy Discharges 10 | . . . . . . 3 . . 6 1 . . Parts Rejected 3 | . . . . . . 2 . . 1 . . . Parts Fused 1 | . . . . . . . . . . 1 . . Data Loss (minor) 16 | . . . . . . 8 . . 5 2 . 1 Data Loss (major) 9 | . . . . . . 2 . . 3 4 . . Misfires 5 | . . . . . . 5 . . . . . . Misdirections 5 | . . . . . . . . 2 2 1 . . Weapon Failures 10 | . . . . . . 3 . . 4 3 . . Overload Shots . | . . . . . . . . . . . . . Overflow Damage 110 | . . 34 . 8 39 6 . . 23 . . . Projectiles . | . . . . . . . . . . . . . Explosions 110 | . . 34 . 8 39 6 . . 23 . . . Melee . | . . . . . . . . . . . . . Knockbacks 1 | . . 1 . . . . . . . . . . Impact 1 | . . 1 . . . . . . . . . . Kinetic . | . . . . . . . . . . . . . Secondary . | . . . . . . . . . . . . . Self-Inflicted Damage 280 | . . . . 19 18 181 . . 62 . . . Shots 9 | . . . . 1 1 6 . . 1 . . . Rammed 18 | . 2 11 . . 3 . . . 2 . . . Targets Rammed 18 | . 2 11 . . 3 . . . 2 . . . Kicked . | . . . . . . . . . . . . . Crushed . | . . . . . . . . . . . . . Highest Temperature 454 | 54 454 116 . 114 309 282 64 . 254 248 21 452 Average Temperature 80 | 19 104 53 . 50 89 77 25 . 53 73 7 103 Received Heat Transfer 2106 | . 249 66 . 6 258 149 36 . 222 117 36 967 Effects 17 | . 6 . . . 7 1 . . . 2 . 1 Shutdowns 1 | . 1 . . . . . . . . . . . Energy Bleed 4 | . 2 . . . 1 1 . . . . . . Interference 10 | . 2 . . . 6 . . . . 2 . . Matter Decay 1 | . 1 . . . . . . . . . . . Damage (minor) 1 | . . . . . . . . . . . . 1 Siege Activations . | . . . . . . . . . . . . . Robots Corrupted . | . . . . . . . . . . . . . Combat Hostiles . | . . . . . . . . . . . . . Parts Fried 7 | . 1 . . 1 3 . . . 2 . . . Impact Corruptions . | . . . . . . . . . . . . . Robots Melted . | . . . . . . . . . . . . . Combat Hostiles . | . . . . . . . . . . . . . Parts Melted 4 | 1 3 . . . . . . . . . . . Heat Transferred 3005 | 375 1751 300 . . 331 . . . 100 . . 148 Parts Sabotaged 3 | . . . . . . . . . . . . 3 Parts Stolen . | . . . . . . . . . . . . . Parts Stripped . | . . . . . . . . . . . . . Power Chain Reactions 7 | . 3 1 . . 2 . . . 1 . . . Alert | -11 -10 -10 -10 -9 -8 -8 -7 -7 -7 -7 -6 -6 ------- Run | Yrd Mat Min Exi Min Mat Gar Fac Was Fac Gar Fac Gar Peak Influence 1659 | 35 423 271 . 105 307 1659 1034 288 208 355 256 394 Initial 870 | . 22 135 . . . 193 870 288 173 31 180 179 Average 300 | 17 270 71 . 24 153 807 913 262 134 170 223 265 Maximum Alert Level 5 | . 2 1 . . 1 5 3 1 1 1 1 1 Low Security (%) 51 | 100 15 79 . 100 70 1 . . 88 70 49 41 Level 1 28 | . 83 20 . . 29 18 . 100 11 29 50 58 Level 2 4 | . 1 . . . . 23 . . . . . . Level 3 8 | . . . . . . 26 100 . . . . . Level 4 5 | . . . . . . 26 . . . . . . Level 5 . | . . . . . . 3 . . . . . . High Security . | . . . . . . . . . . . . . Max Security . | . . . . . . . . . . . . . Squads Dispatched 26 | . 7 1 . . 7 . 6 . 3 . 2 . Investigation 11 | . 6 1 . . 2 . 1 . 1 . . . Extermination 2 | . . . . . . . 1 . 1 . . . Reinforcement 7 | . 1 . . . 3 . 1 . 1 . 1 . Assault 2 | . . . . . . . 2 . . . . . Garrison 4 | . . . . . 2 . 1 . . . 1 . Intercept . | . . . . . . . . . . . . . Searches Triggered . | . . . . . . . . . . . . . Construction Impeded 1 | . . . . . . . . . 1 . . . Haulers Reinforced . | . . . . . . . . . . . . . Active Scanning Responses . | . . . . . . . . . . . . . Cargo Convoy Interrupts . | . . . . . . . . . . . . . Alert ID Control Effect 3 | . . . . . . . . . . . . 3 Stealth | -11 -10 -10 -10 -9 -8 -8 -7 -7 -7 -7 -6 -6 --------- Run | Yrd Mat Min Exi Min Mat Gar Fac Was Fac Gar Fac Gar Distress Signals 4 | . 1 . . . 2 . 1 . . . . . Communications Jammed 17 | . . . . . . . . . 17 . . . Distress Signals 17 | . . . . . . . . . 17 . . . Times Spotted 207 | . 31 7 1 7 33 37 12 5 16 12 4 42 Peak Tracking Total 16 | . 5 2 1 3 4 5 5 3 4 3 2 16 Tactical Retreats 6 | . . . . . 1 . 1 . . 1 . 3 Traps | -11 -10 -10 -10 -9 -8 -8 -7 -7 -7 -7 -6 -6 ------- Run | Yrd Mat Min Exi Min Mat Gar Fac Was Fac Gar Fac Gar Traps Triggered 10 | . 2 . . 1 . 1 2 . 1 1 . 2 Indirectly . | . . . . . . . . . . . . . Trap Hack Attempts 65 | . . . . . 65 . . . . . . . Triggered . | . . . . . . . . . . . . . Disarmed 4 | . . . . . 4 . . . . . . . Reprogrammed 2 | . . . . . 2 . . . . . . . Reused 1 | . . . . . 1 . . . . . . . Traps Extracted . | . . . . . . . . . . . . . Installed . | . . . . . . . . . . . . . Triggered 1 | . . . . . 1 . . . . . . . Objects Rigged 15 | . . . . . 4 11 . . . . . . Exploded 7 | . . . . . . 4 . . . . . 3 Machines | -11 -10 -10 -10 -9 -8 -8 -7 -7 -7 -7 -6 -6 ---------- Run | Yrd Mat Min Exi Min Mat Gar Fac Was Fac Gar Fac Gar Machines Disabled 14 | . 2 1 . . 2 5 . . 1 2 . 1 Max in Single Turn 1 | . 1 1 . . 1 1 . . 1 1 . 1 Garrison Relay 6 | . . . . . . 4 . . . 1 . 1 Machines Repaired . | . . . . . . . . . . . . . Machines Dismantled . | . . . . . . . . . . . . . Machines Sabotaged . | . . . . . . . . . . . . . Overloaded Fab Kills . | . . . . . . . . . . . . . Hacking | -11 -10 -10 -10 -9 -8 -8 -7 -7 -7 -7 -6 -6 --------- Run | Yrd Mat Min Exi Min Mat Gar Fac Was Fac Gar Fac Gar Machines Accessed 38 | . 10 2 2 2 11 3 . . 6 1 1 . Terminals 24 | . 7 1 . . 8 3 . . 4 1 . . Fabricators . | . . . . . . . . . . . . . Repair Stations 3 | . 1 . . . 1 . . . 1 . . . Recycling Units 3 | . 2 . . . 1 . . . . . . . Scanalyzers . | . . . . . . . . . . . . . Garrison Access 3 | . . . . . 1 . . . 1 . 1 . Total Hacks 104 | . 38 3 2 2 34 6 . . 16 2 1 . Successful 58 | . 24 1 2 2 19 . . . 8 1 1 . Failed 46 | . 14 2 . . 15 6 . . 8 1 . . Catastrophic 6 | . . 1 . . 1 2 . . 1 1 . . Database Lockouts . | . . . . . . . . . . . . . Manual 56 | . 31 2 1 . 18 . . . 4 . . . Terminals 80 | . 29 2 . . 28 6 . . 13 2 . . Fabricators . | . . . . . . . . . . . . . Repair Stations 9 | . 4 . . . 3 . . . 2 . . . Recycling Units 7 | . 5 . . . 2 . . . . . . . Scanalyzers . | . . . . . . . . . . . . . Garrison Access 3 | . . . . . 1 . . . 1 . 1 . Terminal Hacks 25 | . 9 1 2 2 6 . . . 4 1 . . Record 1 | . . . 1 . . . . . . . . . Robot Analysis 8 | . 5 . . . 2 . . . 1 . . . Prototype ID Bank 5 | . 3 . . . 2 . . . . . . . Open Door 3 | . . 1 . 2 . . . . . . . . Emergency Access Points 1 | . . . . . . . . . 1 . . . Terminal Index 2 | . 1 . . . 1 . . . . . . . Scanalyzer Index 1 | . . . . . 1 . . . . . . . Locate Traps 2 | . . . . . . . . . 2 . . . Security Stations 1 | . . . . . . . . . . 1 . . Derelict Proto ID Bank 1 | . . . 1 . . . . . . . . . Fabricator Hacks . | . . . . . . . . . . . . . Repair Station Hacks 4 | . . . . . 2 . . . 2 . . . Scan Component 2 | . . . . . 1 . . . 1 . . . Repair 2 | . . . . . 1 . . . 1 . . . Recycling Unit Hacks 3 | . 2 . . . 1 . . . . . . . Report Inventory 3 | . 2 . . . 1 . . . . . . . Scanalyzer . | . . . . . . . . . . . . . Garrison Access Hacks 3 | . . . . . 1 . . . 1 . 1 . Unlock Access 3 | . . . . . 1 . . . 1 . 1 . Unauthorized Hacks 23 | . 13 . . . 9 . . . 1 . . . Terminals 18 | . 9 . . . 8 . . . 1 . . . Botnet 6 | . 3 . . . 2 . . . 1 . . . Disrupt 1 | . . . . . 1 . . . . . . . Operators 1 | . 1 . . . . . . . . . . . Skim 10 | . 5 . . . 5 . . . . . . . Fabricators . | . . . . . . . . . . . . . Repair Stations 1 | . 1 . . . . . . . . . . . Mechanics 1 | . 1 . . . . . . . . . . . Recycling Units 4 | . 3 . . . 1 . . . . . . . Recyclers 1 | . 1 . . . . . . . . . . . Tunnel 3 | . 2 . . . 1 . . . . . . . Scanalyzers . | . . . . . . . . . . . . . Garrison Access . | . . . . . . . . . . . . . Data Cores Recovered . | . . . . . . . . . . . . . Used . | . . . . . . . . . . . . . Hacking Detections 29 | . 9 1 . . 9 3 . . 6 1 . . Full Trace Events 6 | . 3 1 . . 1 1 . . . . . . Feedback Events 1 | . . . . . . 1 . . . . . . Corruption 1 | . . . . . . 1 . . . . . . Feedback Blocked . | . . . . . . . . . . . . . Robot Schematics Acquired . | . . . . . . . . . . . . . Robots Built . | . . . . . . . . . . . . . Authchips . | . . . . . . . . . . . . . Time . | . . . . . . . . . . . . . Total Robot Build Rating . | . . . . . . . . . . . . . Part Schematics Acquired . | . . . . . . . . . . . . . Parts Built . | . . . . . . . . . . . . . Authchips . | . . . . . . . . . . . . . Time . | . . . . . . . . . . . . . Total Part Build Rating . | . . . . . . . . . . . . . Parts Repaired 2 | . . . . . 1 . . . 1 . . . Time 100 | . . . . . 44 . . . 56 . . . Parts Recycled . | . . . . . . . . . . . . . Recycled Matter . | . . . . . . . . . . . . . Retrieved Matter . | . . . . . . . . . . . . . Retrieved Components . | . . . . . . . . . . . . . Parts Scanalyzed . | . . . . . . . . . . . . . Part Schematics Acquired . | . . . . . . . . . . . . . Parts Damaged . | . . . . . . . . . . . . . Bothacking | -11 -10 -10 -10 -9 -8 -8 -7 -7 -7 -7 -6 -6 ------------ Run | Yrd Mat Min Exi Min Mat Gar Fac Was Fac Gar Fac Gar Used RIF Installer 3 | . . . . . . 1 . . . 1 . 1 Command Fork 1 | . . . . . . . . . . . . 1 Alert ID Control 1 | . . . . . . . . . . 1 . . Robots Hacked 35 | . . . 5 . 3 . . 6 8 3 2 8 Non-combat 6 | . . . 3 . 2 . . . 1 . . . Combat 29 | . . . 2 . 1 . . 6 7 3 2 8 Robot Hacks Applied 42 | . . . 5 . 4 . . 7 9 4 2 11 parse_system 12 | . . . 5 . 3 . . 1 1 1 . 1 check_alert 1 | . . . . . 1 . . . . . . . ignore_targets 6 | . . . . . . . . 6 . . . . find_shortcuts 1 | . . . . . . . . . . 1 . . find_garrison 1 | . . . . . . . . . 1 . . . reboot_propulsion 2 | . . . . . . . . . . . . 2 link_complan 1 | . . . . . . . . . 1 . . . spike_heat 1 | . . . . . . . . . . . 1 . overload_power 1 | . . . . . . . . . 1 . . . amplify_resonance 6 | . . . . . . . . . 1 . . 5 disable_weapons 1 | . . . . . . . . . 1 . . . reboot_system 2 | . . . . . . . . . 1 1 . . overwrite_iff 3 | . . . . . . . . . . . . 3 streamctrl_high 2 | . . . . . . . . . 1 1 . . formatsys_high 2 | . . . . . . . . . 1 . 1 . Relay Couplers Released 23 | . . . . . . 15 . . . 5 . 3 Machine Destruction 23 | . . . . . . 15 . . . 5 . 3 Attached 9 | . . . . . . . . 1 3 1 . 4 Fabnet Peak Effective % . | . . . . . . . . . . . . . Robots Rewired . | . . . . . . . . . . . . . Allies Hacked 1 | . . . . . . . . . . 1 . . Hacks Repelled . | . . . . . . . . . . . . . Allies | -11 -10 -10 -10 -9 -8 -8 -7 -7 -7 -7 -6 -6 -------- Run | Yrd Mat Min Exi Min Mat Gar Fac Was Fac Gar Fac Gar Total Allies 17 | . . 3 . . 1 1 2 . 2 3 1 4 Largest Group 3 | . . 3 . . 1 1 2 . 1 3 2 3 Highest-Rated Group 207 | . . 40 . . 15 24 34 . 32 207 124 176 Highest-Rated Ally 95 | . . 16 . . 15 24 21 . 32 95 95 95 Total Orders 5 | . . . . . 2 2 1 . . . . . RETURN 5 | . . . . . 2 2 1 . . . . . Ally Attacks 139 | . . 15 . . 4 10 29 23 11 25 5 17 Total Damage 2202 | . . 162 . . 16 71 137 44 207 716 341 508 Kills 13 | . . 2 . . . 3 . . . 4 1 3 Allies Corrupted . | . . . . . . . . . . . . . Allies Melted . | . . . . . . . . . . . . . Intel | -11 -10 -10 -10 -9 -8 -8 -7 -7 -7 -7 -6 -6 ------- Run | Yrd Mat Min Exi Min Mat Gar Fac Was Fac Gar Fac Gar Robot Analysis Total 8 | . 5 . . . 2 . . . 1 . . . Derelict Logs Recovered 2 | . . 1 . 1 . . . . . . . . Drone Launches 78 | . . . . . 12 13 30 23 . . . . Drone Recoveries 73 | . . . . . 12 10 30 21 . . . . Exploration | -11 -10 -10 -10 -9 -8 -8 -7 -7 -7 -7 -6 -6 ------------- Run | Yrd Mat Min Exi Min Mat Gar Fac Was Fac Gar Fac Gar Turns Passed 13084 | 234 1521 1798 1562 1497 1745 2307 419 153 857 446 81 464 Spaces Moved 6081 | 145 702 672 647 623 840 1192 198 90 422 283 60 207 Core 12 | 6 . . . . . . . . 3 . . 3 Treads 4915 | . 432 672 647 623 840 1192 198 90 217 . . 4 Legs 409 | 139 270 . . . . . . . . . . . Wheels 745 | . . . . . . . . . 202 283 60 200 Hover . | . . . . . . . . . . . . . Flight . | . . . . . . . . . . . . . Fastest Speed 50 | 50 120 240 240 160 150 150 155 155 110 101 105 50 Average Speed 181 | 117 172 240 240 233 156 159 180 155 156 106 105 144 Slowest Speed 950 | 120 240 240 240 240 240 235 235 155 950 155 105 240 Overloaded Moves . | . . . . . . . . . . . . . Propulsion Burnouts . | . . . . . . . . . . . . . Robots Hopped . | . . . . . . . . . . . . . Cave-ins Triggered . | . . . . . . . . . . . . . Exploration Rate (%) 52 | 5 93 99 79 98 58 84 6 84 15 38 3 25 Regions Visited 12 Branch Regions 3 Pre-discovered Areas 9 | . 4 . 1 1 3 . . . . . . . Known Exits Taken 4 | . . 1 . . 1 . . . 1 . 1 . Unknown Exits Taken 4 | 1 1 . 1 1 . . . . . . . . Scrap Searched 3 | . . 1 . 2 . . . . . . . . Spaces Dug 154 | . . . . . . 154 . . . . . . Terrain Destroyed 331 | . 10 27 . 15 50 222 . . 7 . . . Melee . | . . . . . . . . . . . . . Projectile . | . . . . . . . . . . . . . AOE 330 | . 10 27 . 15 50 221 . . 7 . . . Terrain Rammed 1 | . . . . . . 1 . . . . . . Walls Destroyed 1 | . . . . . . 1 . . . . . . Machines Disabled . | . . . . . . . . . . . . . Actions | -11 -10 -10 -10 -9 -8 -8 -7 -7 -7 -7 -6 -6 --------- Run | Yrd Mat Min Exi Min Mat Gar Fac Was Fac Gar Fac Gar Total 7455 | 175 854 817 654 658 1154 1488 232 101 551 390 72 309 Wait 382 | . 21 101 . 12 92 92 8 . 32 24 . . Move 6071 | 144 701 671 646 622 839 1191 198 89 422 282 59 207 Hop . | . . . . . . . . . . . . . Pick Up 136 | 7 18 6 1 6 26 39 1 2 11 4 2 13 Fast Attach 37 | 7 3 1 . . 3 5 3 . 7 2 . 6 Attach 41 | . 4 1 . . 9 3 1 1 6 3 1 12 Detach 9 | . 2 1 . . 2 . . . 1 1 . 2 Swap 83 | 2 9 4 2 4 18 28 4 . 3 6 . 3 Drop 111 | . 10 6 . 7 23 36 2 2 8 6 2 9 Fire 459 | 15 84 15 . 7 65 82 15 7 59 45 8 57 Melee 10 | . . . 5 . 5 . . . . . . . Ram 2 | . . . . . . 1 . . 1 . . . Kick . | . . . . . . . . . . . . . Crush 17 | . 2 11 . . 3 . . . 1 . . . Escape Stasis 16 | . . . . . . . . . . 16 . . Rewire 1 | . . . . . . . . . . 1 . . Trap 80 | . . . . . 69 11 . . . . . . Miscellaneous . | . . . . . . . . . . . . . Route ------- -11/Scrapyard -10/Materials (discovered 6 exits: *Mat x3 / *Min x2 / Sub) -10/Mines (discovered 4 exits: *Mat x2 / *Exi / *Sub) -10/Exiles -9/Mines (discovered 2 exits: *Mat x2) -8/Materials (discovered 4 exits: *Fac x3 / Gar) -8/Garrison (discovered 3 exits: *Fac x3) -7/Factory -7/Waste -7/Factory -7/Garrison -6/Factory -6/Garrison History --------- Turn | Location | Event 3 | -11/Scrapyard | Discovered new exit (range 15) 235 | -11/Scrapyard | Entered Materials 301 | -10/Materials | Build established: Mutant 493 | -10/Materials | Discovered new exit (range 15) 749 | -10/Materials | Discovered new exit (range 15) 973 | -10/Materials | Discovered new exit (range 16) 1097 | -10/Materials | Discovered new exit (range 15) 1211 | -10/Materials | Learned 2 Mines zone layouts 1297 | -10/Materials | Identified exit to Materials 1297 | -10/Materials | Identified exit to Subcaves 1328 | -10/Materials | Learned location of Mines (-10) 1349 | -10/Materials | Learned Storage garrison access intel 1381 | -10/Materials | Learned location of Subcaves (-10) 1424 | -10/Materials | Learned 4 Recycling zone layouts 1464 | -10/Materials | Core integrity fell below 50% 1756 | -10/Materials | Entered Mines 1757 | -10/Mines | Identified exit to Exiles 1793 | -10/Mines | Discovered exit to Materials (range 9) 1919 | -10/Mines | Met a Derelict shopkeep closing up shop 2068 | -10/Mines | Learned Materials emergency access door positions 2306 | -10/Mines | Found DCF Scrap (11 items) 2379 | -10/Mines | Assisted by bots powering up and referring to "LRC-V3" 3118 | -10/Mines | Excavation squad dispatched 3118 | -10/Mines | A large section of the Mines collapsed 3343 | -10/Mines | Discovered exit to Subcaves (range 15) 3544 | -10/Mines | Deemed a non-threat by the Exiles lab entrance 3554 | -10/Mines | Entered Exiles 3614 | -10/Exiles | Met 8R-AWN 3662 | -10/Exiles | Met EX-HEX 3740 | -10/Exiles | Met EX-BIN 3814 | -10/Exiles | Met EX-DEC 3875 | -10/Exiles | Learned location of Zion (-7) 3995 | -10/Exiles | Discovered new exit (range 11) 4464 | -10/Exiles | Visited The Gauntlet 4732 | -10/Exiles | Aligned with FarCom system 4735 | -10/Exiles | Given EX-Vault access code 4792 | -10/Exiles | Opened EX-Vault 4804 | -10/Exiles | Found PSU Rigger 4853 | -10/Exiles | Warned to stay clear of 0b10 Research branches 4890 | -10/Exiles | Exiles lab attacked by MAIN.C 5116 | -10/Exiles | Left Exiles lab with PSU Rigger 5116 | -10/Exiles | Entered Mines 5117 | -9/Mines | Learned location of Storage (-9) 5264 | -9/Mines | Met a Derelict who couldn't figure out how to use a Trap Extractor 5279 | -9/Mines | Core integrity fell below 20% 5466 | -9/Mines | Found the Drone Emporium 5480 | -9/Mines | Found Prototype Device 5752 | -9/Mines | Learned Materials trap positions 5755 | -9/Mines | Discovered new exit (range 15) 6582 | -9/Mines | Discovered new exit (range 12) 6613 | -9/Mines | Entered Materials 6613 | -8/Materials | Evolved 4 slots: Propulsion x1, Utility x2, Weapon x1 6614 | -8/Materials | Loaded intel: 20 trap records 6941 | -8/Materials | Build established: Skirmisher 7160 | -8/Materials | Discovered new exit (range 15) 7168 | -8/Materials | Lost 4 parts (1p3w) 7232 | -8/Materials | Identified Splice Drone Bay 7323 | -8/Materials | Repaired Lightning Gun 7511 | -8/Materials | Build established: Mutant 8093 | -8/Materials | Learned location of 1 exit from Storage 8155 | -8/Materials | Identified exit to Garrison 8184 | -8/Materials | Garrison activated, responded to threat 8205 | -8/Materials | Learned location of Lower Caves (-7) 8281 | -8/Materials | Identified exit to Factory 8291 | -8/Materials | Build established: Skirmisher 8305 | -8/Materials | Learned Factory repair station intel 8338 | -8/Materials | Learned Storage security intel 8358 | -8/Materials | Entered Garrison 8392 | -8/Garrison | Triggered checkpoint 8434 | -8/Garrison | Garrison Relay disabled 8536 | -8/Garrison | Triggered checkpoint 8749 | -8/Garrison | Assembled breached garrison interior 8927 | -8/Garrison | Destroyed 11 combat bots 9142 | -8/Garrison | Build established: Tank 9158 | -8/Garrison | Discovered exit to Factory (range 3) 9267 | -8/Garrison | Garrison Relay disabled 9468 | -8/Garrison | Discovered exit to Factory (range 12) 9574 | -8/Garrison | Garrison Relay disabled 10071 | -8/Garrison | Garrison Relay disabled 10147 | -8/Garrison | Discovered exit to Factory (range 8) 10374 | -8/Garrison | Build established: Skirmisher 10604 | -8/Garrison | System corruption reached 10% 10608 | -8/Garrison | Installed Relay Interface Framework 10665 | -8/Garrison | Entered Factory 10665 | -7/Factory | Evolved 2 slots: Utility x2 10666 | -7/Factory | Identified exit to Lower Caves 10667 | -7/Factory | Loaded intel: 6 repair station locations 10898 | -7/Factory | Build established: Bothacker-Skirmisher 10954 | -7/Factory | Garrison activated, responded to threat 11065 | -7/Factory | First assault squad dispatched 11084 | -7/Factory | Sucked down chute 11084 | -7/Factory | Entered Waste 11099 | -7/Waste | EMP discharged 11107 | -7/Waste | Spotted C-40 Crusher 11148 | -7/Waste | Spotted C-40 Crusher 11162 | -7/Waste | Spotted C-40 Crusher 11169 | -7/Waste | Spotted C-40 Crusher 11178 | -7/Waste | Spotted C-40 Crusher 11184 | -7/Waste | Spotted C-40 Crusher 11199 | -7/Waste | EMP discharged 11199 | -7/Waste | System corruption reached 10% 11223 | -7/Waste | Discovered new exit (range 10) 11237 | -7/Waste | Entered Factory 11570 | -7/Factory | Lost 3 parts (1p2n) 11730 | -7/Factory | Repaired Imp. Plasma Cutter 11792 | -7/Factory | Lost 3 parts (1n1u1w) 12094 | -7/Factory | Identified exit to Garrison 12094 | -7/Factory | Entered Garrison 12161 | -7/Garrison | Triggered checkpoint 12247 | -7/Garrison | Found embedded Infiltrators 12315 | -7/Garrison | Expanded RIF knowledge: Alert ID Control 12374 | -7/Garrison | Triggered checkpoint 12408 | -7/Garrison | Learned Factory security intel 12412 | -7/Garrison | Garrison Relay disabled 12531 | -7/Garrison | Discovered new exit (range 8) 12540 | -7/Garrison | Entered Factory 12540 | -6/Factory | Accompanied by 1 ally 12540 | -6/Factory | Evolved 2 slots: Utility x2 12580 | -6/Factory | Garrison activated, responded to threat 12617 | -6/Factory | Identified exit to Garrison 12621 | -6/Factory | Entered Garrison 12621 | -6/Garrison | Accompanied by 2 allies 12637 | -6/Garrison | Spotted B-75 Beast 12698 | -6/Garrison | Destroyed B-75 Beast 12726 | -6/Garrison | Lost 9 parts (1p2n3u3w) 12770 | -6/Garrison | Expanded RIF knowledge: Command Fork 12843 | -6/Garrison | Triggered checkpoint 12856 | -6/Garrison | Garrison Relay disabled 13038 | -6/Garrison | Spotted B-75 Beast 13053 | -6/Garrison | Triggered checkpoint 13055 | -6/Garrison | Triggered checkpoint 13070 | -6/Garrison | Core integrity fell below 50% 13078 | -6/Garrison | Core integrity fell below 20% 13085 | -6/Garrison | Destroyed by G-50 Soldier with Heavy Laser Last Messages --------------- 13068_ Dropped Rigged Imp. Deuterium Engine. 13068_ Rigged Imp. Deuterium Engine explodes. 13069_ Arm. Wheel destroyed. 13069_ Knocked back. 13069_ Dropped Rigged Imp. Deuterium Engine. 13070_ Rigged Imp. Deuterium Engine explodes. 13070_ L-41 Fighter destroyed. 13070_ Critical hit (Burn: +37). 13071_ Arm. Wheel destroyed. 13072_ Matter Neutralizer destroyed. 13072_ Relay Coupler [Brawler] destroyed. 13072_ Critical hit (Blast). 13072_ Lgt. Treads destroyed. 13073_ S-27 Virus destroyed. 13075_ Relay Coupler [Specialist] destroyed. 13076_ Lgt. Treads destroyed. 13080_ Critical hit (Burn: +37). 13083_ Imp. Medium Treads destroyed. 13083_ Dropped Hcp. Storage Unit. [Achievement: Back For More] Map ----- +----------------------------------------------------+ | ?????????????????????????????????????????????????? | | ?????????????????????????????????????????????????? | | ?????????????????????????????????????????????????? | | ##???????????????????????????????????????????????? | | #####??##???????????????????????????????????????? | | [" ###"#???????????????????????????????????????? | | [# " !"#???????????????????????????????????????? | | ==!% / #???????????????????????????????????????? | | [ #! #???????????????????????????????????????? | | # # #"#???????????????????????????????????????? | | ###### ###???????????????????????????????????????? | | ?????# #?????????????????????????????????????????? | | ###??# #?????????????????????????????????????????? | | #??# #?????????????????????????????????????????? | | #### #?????????????????????????????????????????? | | ++## #????????????????????????????d????????????? | | # #????????????????????????????i????????????? | | # #?????????????????????????????????????????? | | ! #### #?????????????????????????????????????????? | | %! ### #?????????????????????????????????????????? | | ## #??????????????########???????????????????? | | ! ## #??????????????# ????????????????????? | | = [ ## #??????????????# ?????????????????????? | | %==% !#??????????????# ??????????????????????? | | = [ ####??????????????# #??????????????????????? | | # #????????????????# @#??????????????????????? | | ####????????????????#! #??????????????????????? | | +???????????????????#![!#?#????????????????????? | | ##??????????????????#!![# #????????????????????? | | #?????????????#######[[ # #????????????????????? | | #?????????????# ##ssg+ ?????????????????????? | | #????????###### # sg #??????????????????????? | | ########## % [ g # #????????????????????? | | %= BB g%= + #????????????????????? | | * BB g # #????????????????????? | | #######+#### ## # #????????????????????? | | ???????????# ## ## g#?#????????????????????? | | ?????????? ?????????????????????? | | ?????????# #????????????????????? | | ?????????# #????????????????????? | | ?????????# #????????????????????? | | ?????????### ## %=# ###????????????????????? | | ???????????# ## % #??????????????????????? | | ?????????? ?????????????????????? | | ?????????? ?????????????????????? | | ?????????### ###????????????????????? | | ???????????##"### ## ##??????????????????????? | | ????????????? ??# ?? ????????????????????????? | | ????????????? ??#####?? ????????????????????????? | | ?????????????????????????????????????????????????? | +----------------------------------------------------+ Best States ------------- Heat Dissipation 37 Energy Generation 18 Energy Capacity 290 Matter Stores 300 Matter Capacity 300 Sight Range 16 Terrain Scan Range 16 Terrain Scan Density 210 Jamming Range 12 Armor Coverage 825 Resistance: TH 15 Propulsion Shielding 33 Utility Shielding 33 Evasion (%) 55 Recoil Reduction 3 Kinecelleration 30 Relay Coupler Types 5 Relay Coupler Value 119 Authchip Count 2 Item Schematics ----------------- None Robot Schematics ------------------ None Fabricated ------------ Nothing Alien Tech Used ----------------- None Achievements -------------- Back For More Challenges ------------ None Game ------ Seed ContainmentThrusterCyclogen Manual? 0 Play Time 02:24:44 Cumulative 171.1 hours Start 2025.01.09 @ 20:39:23 End 2025.01.10 @ 02:47:52 Sessions 6 Manual Loads 0 Difficulty Rogue Special Mode None Game No. 50 Rogue 50 Adventurer 0 Explorer 0 Win Type - Total 2 Types 1/0/1/0/0/0/0/0/0 Lore% 55 Gallery% 70 Achievement% 60 Wizard Run 0 Options --------- Layout 0 ASCII 0 Keyboard 1 Movement Arrows Keybinds 0 Fullscreen 2 Font 36/Terminus++ Map View 76x50 Zoom Use 0% Tactical HUD 1 Map Filters NONE Filters NONE Steam 1 RUN: 1d916e80-99e8-472c-9d8e-7355115dc4ce